bitfinex/quotes_BTCUSD_20220105
["timestamp","ask_amount","ask_price","bid_price","bid_amount"]
[1641423067876,0.00120377,43379.0,43364.0,12.327]
[1641423068080,0.0002,43389.0,43374.0,0.00122335]
[1641423068276,0.0002,43389.0,43379.0,0.00121689]
[1641423068776,0.0002,43389.0,43385.0,0.00120053]
[1641423069177,0.0002,43389.0,43386.0,0.367901]
[1641423069483,0.31389136,43395.0,43388.0,1.227]
[1641423069484,0.0001,43393.0,43388.0,1.227]
[1641423069677,0.0001,43396.0,43389.0,0.58667004]
[1641423069876,0.0001,43398.0,43392.0,0.00129202]
[1641423070076,0.0002,43405.0,43394.0,1.227]
[1641423070278,0.04422232,43423.0,43403.0,0.00120388]
[1641423070478,0.0002,43429.0,43420.0,0.00122513]
[1641423070685,0.0002,43429.0,43420.0,0.00102513]
[1641423070686,0.0001,43423.0,43420.0,0.00102513]
[1641423071023,0.0001,43423.0,43421.0,0.00113405]
[1641423071227,1.30279094,43428.0,43421.0,11.10103405]
[1641423071426,0.0002,43430.0,43425.0,0.00112692]
[1641423071635,0.0001,43432.0,43428.0,0.0011937]
[1641423071826,0.0004,43441.0,43430.0,0.00123781]
[1641423072033,0.0004,43441.0,43436.0,0.00116913]
[1641423072224,0.0003,43448.0,43438.0,2.2001]
[1641423072425,0.0003,43448.0,43442.0,0.0698]
[1641423072426,0.0001,43448.0,43442.0,0.0698]
[1641423072627,0.0001,43448.0,43443.0,0.58617104]
[1641423072824,0.0001,43448.0,43447.0,0.00127659]
[1641423073023,0.0001,43448.0,43447.0,0.36857859]
[1641423073222,0.0001,43448.0,43447.0,0.36847859]
[1641423073423,0.0001,43454.0,43447.0,0.56837859]
[1641423073623,0.0002,43457.0,43447.0,0.56837859]
[1641423073624,0.0002,43457.0,43454.0,0.00122154]
[1641423073823,0.0002,43457.0,43455.0,0.367302]
[1641423074322,0.0002,43457.0,43455.0,0.367102]
[1641423074528,0.0002,43462.0,43457.0,0.0012667]
[1641423074792,0.0002,43462.0,43459.0,0.00121773]
[1641423074975,0.0001,43461.0,43460.0,0.367155]
[1641423075174,0.0002,43465.0,43460.0,0.70686493]
[1641423075376,0.0002,43465.0,43460.0,0.70676493]
[1641423075573,0.0002,43465.0,43461.0,0.34532141]
[1641423075774,0.0002,43465.0,43462.0,0.57761888]
[1641423075974,0.0002,43465.0,43462.0,0.367055]
[1641423076175,0.0002,43465.0,43461.0,0.00109316]
[1641423076376,0.0002,43465.0,43462.0,0.367223]
[1641423076673,0.0002,43465.0,43461.0,0.00100594]
[1641423077076,6.61591635,43463.0,43461.0,5.94e-06]
[1641423077281,0.27424483,43462.0,43457.0,0.05]
[1641423077476,0.38086638,43462.0,43436.0,0.0002201]
[1641423077676,0.48086638,43462.0,43435.0,0.65]
[1641423077877,0.057556,43450.0,43437.0,0.00123087]
[1641423078079,0.1,43438.0,43437.0,0.00123087]
[1641423078278,0.4311629,43438.0,43410.0,0.00121655]
[1641423078521,0.4311629,43438.0,43436.0,7.16e-06]
[1641423078720,0.4311629,43438.0,43408.0,0.65]
[1641423078721,0.61675736,43437.0,43408.0,0.65]
[1641423078923,0.1,43422.0,43408.0,0.65]
[1641423079123,0.072908,43420.0,43408.0,0.65]
[1641423079324,0.0012584,43420.0,43408.0,0.65]
[1641423079520,0.44872769,43436.0,43408.0,0.65]
[1641423079521,0.00129728,43431.0,43409.0,0.36852177]
[1641423079722,0.26941052,43431.0,43409.0,0.00129877]
[1641423080120,0.057591,43424.0,43409.0,0.00129877]
[1641423080321,0.05731362,43424.0,43409.0,0.00129877]
[1641423080530,0.05731362,43424.0,43409.0,0.23]
[1641423080721,0.28009441,43420.0,43409.0,0.23]
[1641423080922,0.00122535,43426.0,43409.0,0.23]
[1641423081122,0.01,43424.0,43409.0,0.233]
[1641423081323,0.057599,43418.0,43409.0,0.233]
[1641423081730,0.0012879,43410.0,43409.0,0.233]
[1641423081923,0.0012879,43410.0,43395.0,0.13498393]
[1641423082125,0.00122103,43400.0,43384.0,0.0999]
[1641423082378,6.20762,43403.0,43402.0,2.04e-06]
[1641423082778,0.05762,43403.0,43402.0,2.04e-06]
[1641423082976,0.05884214,43403.0,43402.0,2.04e-06]
[1641423083178,0.00127337,43396.0,43377.0,0.00125479]
[1641423083378,0.057637,43390.0,43377.0,0.00125479]
[1641423083579,0.057637,43390.0,43370.0,0.00124082]
[1641423083580,0.42276191,43390.0,43370.0,0.00124082]
[1641423083783,0.28467728,43389.0,43370.0,0.00124082]
[1641423083980,0.0012786,43389.0,43370.0,0.00124082]
[1641423084379,0.0012786,43389.0,43361.0,0.7939]
[1641423084380,0.057645,43383.0,43362.0,0.4139]
[1641423084582,0.34845363,43381.0,43370.0,0.28305895]
[1641423085081,0.34845363,43381.0,43370.0,0.29005895]
[1641423085082,0.34945363,43381.0,43370.0,0.29005895]
[1641423085279,0.001,43381.0,43370.0,0.29005895]
[1641423085483,0.001,43381.0,43375.0,0.4139]
[1641423085687,0.00123749,43397.0,43379.0,0.00127588]
[1641423085882,0.0392,43412.0,43384.0,0.00128523]
[1641423086119,0.00121314,43409.0,43384.0,0.00128523]
[1641423086319,0.26454273,43399.0,43387.0,0.30635614]
[1641423086518,0.26454273,43399.0,43388.0,0.2337437]
[1641423086722,0.057615,43406.0,43389.0,1.594223]
[1641423086923,0.057617,43423.0,43389.0,1.594223]
[1641423086924,0.00127353,43417.0,43394.0,0.00122857]
[1641423087122,0.06976,43428.0,43400.0,0.0012425]
[1641423087320,0.0001,43434.0,43400.0,0.0012425]
[1641423087321,0.00127416,43422.0,43400.0,0.0012425]
[1641423087729,0.057596,43420.0,43408.0,1.227]
[1641423087919,0.057596,43420.0,43407.0,0.27605739]
[1641423087920,0.057596,43420.0,43410.0,1.227]
[1641423088122,0.057596,43420.0,43411.0,0.22352064]
[1641423088320,0.115189,43426.0,43411.0,0.22352064]
[1641423088523,0.0001,43434.0,43411.0,0.27352064]
[1641423088725,0.0001,43434.0,43420.0,0.36306401]
[1641423088726,0.26710122,43431.0,43420.0,0.36306401]
[1641423088921,0.26710122,43431.0,43421.0,0.2123244]
[1641423089121,0.26710122,43431.0,43422.0,1.227]
[1641423089423,0.0041,43434.0,43424.0,1.227]
[1641423089621,0.0041,43434.0,43424.0,1.327]
[1641423089879,0.0041,43434.0,43425.0,0.367223]
[1641423090076,0.0041,43434.0,43426.0,1.227]
[1641423090279,0.0001,43434.0,43428.0,1.227]
[1641423091076,0.0001,43434.0,43429.0,0.367223]
[1641423091279,0.0071,43434.0,43429.0,0.36846899]
[1641423091492,0.0071,43434.0,43430.0,1.44524858]
[1641423091676,0.0071,43434.0,43431.0,0.20607295]
[1641423091877,0.0071,43434.0,43433.0,1.227]
[1641423092079,0.0001,43436.0,43433.0,1.694223]
[1641423092282,0.0001,43439.0,43435.0,0.00125898]
[1641423092479,0.0001,43439.0,43436.0,0.367223]
[1641423092680,0.0001,43439.0,43437.0,1.227]
[1641423092884,0.0001,43439.0,43438.0,1.594223]
[1641423093079,0.0111,43439.0,43436.0,0.004]
[1641423093282,0.00127558,43437.0,43436.0,0.004]
[1641423093525,0.00127558,43437.0,43410.0,0.07956]
[1641423093725,0.1,43434.0,43410.0,0.07956]
[1641423093925,0.0001,43420.0,43413.0,0.33881059]
[1641423094526,0.0001,43420.0,43414.0,1.227]
[1641423094728,0.0001,43420.0,43414.0,1.24]
[1641423094926,0.0001,43420.0,43415.0,1.227]
[1641423095125,0.0001,43420.0,43414.0,0.005]
[1641423095126,0.0231,43420.0,43414.0,0.005]
[1641423095531,0.0231,43420.0,43414.0,1.232]
[1641423095727,0.0231,43420.0,43416.0,1.227]
[1641423095926,0.0231,43420.0,43417.0,0.367223]
[1641423096127,0.1799,43419.0,43418.0,1.227]
[1641423096327,0.1799,43419.0,43418.0,1.594223]
[1641423096527,0.1799,43419.0,43418.0,1.744223]
[1641423097278,0.1879,43419.0,43418.0,1.748223]
[1641423097675,0.1879,43419.0,43418.0,1.598223]
[1641423097875,0.1879,43419.0,43418.0,0.004]
[1641423098774,0.1879,43419.0,43417.0,6.545e-05]
[1641423098775,0.1799,43419.0,43417.0,6.545e-05]
[1641423099175,0.1859,43419.0,43418.0,0.005]
[1641423099879,0.243497,43419.0,43418.0,0.005]
[1641423100277,0.243497,43419.0,43417.0,5.45e-06]
[1641423100278,0.34479257,43419.0,43417.0,5.45e-06]
[1641423100476,0.00129854,43412.0,43399.0,0.22029746]
[1641423100682,0.00124834,43413.0,43399.0,0.22029746]
[1641423100876,0.1799,43406.0,43399.0,0.22029746]
[1641423101129,0.17933715,43406.0,43396.0,0.00124896]
[1641423101333,0.17933715,43406.0,43392.0,1.227]
[1641423101334,0.39528982,43405.0,43394.0,0.30442099]
[1641423101529,0.39528982,43405.0,43395.0,0.22029746]
[1641423101732,0.39528982,43405.0,43394.0,0.30442099]
[1641423101931,0.39528982,43405.0,43392.0,1.45823369]
[1641423102331,0.39528982,43405.0,43394.0,1.227]
[1641423102732,0.00125173,43397.0,43392.0,0.23]
[1641423102934,0.057629,43395.0,43392.0,0.23]
[1641423103131,0.237529,43395.0,43392.0,0.23]
[1641423104534,0.115278,43394.0,43392.0,0.23]
[1641423104971,0.00127314,43393.0,43392.0,0.23]
[1641423105771,0.11655014,43393.0,43392.0,0.23]
[1641423106771,0.1799,43395.0,43392.0,0.23]
[1641423106971,0.1799,43395.0,43392.0,0.2300841]
[1641423107171,0.006,43393.0,43392.0,0.2360841]
[1641423107372,0.1799,43395.0,43392.0,2.11032828]
[1641423107574,0.00124468,43410.0,43394.0,10.85128165]
[1641423107772,0.30107608,43416.0,43405.0,0.28453837]
[1641423107973,0.30107608,43416.0,43405.0,1.51153837]
[1641423108275,0.0001,43420.0,43408.0,0.00120294]
[1641423109122,0.28911537,43416.0,43408.0,0.00420294]
[1641423109322,0.057601,43415.0,43408.0,0.003]
[1641423109924,0.057601,43415.0,43409.0,0.00124489]
[1641423109925,0.036801,43415.0,43409.0,0.00124489]
[1641423110125,0.0101,43420.0,43410.0,0.367223]
[1641423110429,0.0101,43420.0,43418.0,0.28282247]
[1641423110430,0.0001,43420.0,43418.0,0.28282247]
[1641423110630,0.0001,43430.0,43419.0,11.167223]
[1641423110926,0.0001,43430.0,43425.0,0.00129375]
[1641423111132,0.0121,43430.0,43425.0,0.00129375]
[1641423111432,0.0121,43430.0,43426.0,0.367223]
[1641423111630,0.0121,43430.0,43425.0,0.00129375]
[1641423111826,0.0121,43430.0,43426.0,0.37067033]
[1641423112127,0.0066,43430.0,43429.0,0.00124084]
[1641423112376,0.0001,43438.0,43429.0,1.71846384]
[1641423112580,0.0002,43449.0,43435.0,0.0012494]
[1641423112779,0.0002,43449.0,43440.0,0.00121232]
[1641423113577,0.29801055,43449.0,43440.0,0.00121232]
[1641423113780,0.05776,43445.0,43440.0,0.00121232]
[1641423114982,0.0002,43445.0,43440.0,0.00121232]
[1641423115180,0.0002,43445.0,43440.0,0.003]
[1641423116430,0.0002,43445.0,43433.0,1.22823518]
[1641423116627,0.0002,43445.0,43434.0,1.227]
[1641423116827,0.0002,43447.0,43438.0,0.00123687]
[1641423117027,0.0002,43447.0,43440.0,1.227]
[1641423117226,0.0002,43447.0,43441.0,0.57875788]
[1641423117427,0.0002,43447.0,43442.0,1.227]
[1641423117628,0.0002,43447.0,43438.0,0.00123687]
[1641423117827,0.35674398,43447.0,43437.0,0.20611407]
[1641423118429,0.35674398,43447.0,43438.0,1.227]
[1641423118430,0.0002,43447.0,43438.0,1.227]
[1641423118627,0.0002,43447.0,43442.0,0.00120768]
[1641423119329,0.00012269,43447.0,43443.0,0.06]
[1641423120375,0.00012269,43447.0,43443.0,0.33697881]
[1641423120676,0.35997799,43454.0,43444.0,8.85]
[1641423120874,0.115106,43454.0,43443.0,0.38697881]
[1641423121074,0.0001,43456.0,43443.0,0.56697881]
[1641423121274,0.0001,43456.0,43444.0,0.005]
[1641423122076,0.057552,43450.0,43444.0,0.005]
[1641423122281,0.0001,43456.0,43446.0,0.32320981]
[1641423122476,0.0001,43456.0,43449.0,0.00128022]
[1641423122678,0.0001,43456.0,43451.0,1.227]
[1641423122875,0.0001,43456.0,43452.0,0.60089989]
[1641423123075,0.0001,43456.0,43452.0,0.417223]
[1641423123279,0.0001,43456.0,43453.0,1.227]
[1641423123526,0.0002,43463.0,43452.0,0.417223]
[1641423123527,0.5999,43490.0,43456.0,1.227]
[1641423123726,0.5999,43490.0,43460.0,0.00129034]
[1641423123727,0.057731,43468.0,43460.0,0.00129034]
[1641423123928,0.0002,43468.0,43465.0,0.00124791]
[1641423124827,0.057731,43468.0,43466.0,0.00126659]
[1641423125226,0.057731,43468.0,43462.0,1.22153338]
[1641423125427,0.0002,43468.0,43462.0,1.22276181]
[1641423125834,0.057527,43470.0,43466.0,0.29840919]
[1641423126028,0.00127357,43476.0,43466.0,0.29968497]
[1641423126327,0.0053902,43481.0,43467.0,0.20719243]
[1641423126528,0.0053902,43481.0,43467.0,0.20840487]
[1641423126727,0.0053902,43481.0,43468.0,1.22153338]
[1641423126932,0.057526,43474.0,43468.0,1.22153338]
[1641423127381,0.057526,43474.0,43467.0,0.003]
[1641423128380,0.057526,43474.0,43462.0,1.292]
[1641423128582,0.057526,43474.0,43464.0,0.00129367]
[1641423129181,0.057526,43474.0,43465.0,0.00123595]
[1641423130285,0.29924083,43473.0,43465.0,0.00123595]
[1641423130483,0.057547,43470.0,43465.0,0.00123595]
[1641423130688,0.057547,43470.0,43455.0,0.00124009]
[1641423130689,0.1,43467.0,43455.0,0.00124009]
[1641423130883,0.1,43462.0,43449.0,0.00121145]
[1641423131127,0.31930735,43461.0,43455.0,0.003]
[1641423131328,0.0012797,43460.0,43455.0,0.003]
[1641423131531,0.115114,43457.0,43455.0,0.23]
[1641423131728,7.54346776,43456.0,43455.0,0.23]
[1641423131928,0.39346776,43456.0,43455.0,0.23]
[1641423132136,0.39346776,43456.0,43439.0,0.00126034]
[1641423132137,0.057566,43447.0,43439.0,0.00126034]
[1641423132329,0.057566,43447.0,43436.0,1.227]
[1641423132530,0.00121011,43450.0,43436.0,1.227]
[1641423132531,0.115138,43442.0,43436.0,1.227]
[1641423132729,0.115138,43442.0,43430.0,0.0012155]
[1641423132730,0.11486779,43442.0,43430.0,0.0012155]
[1641423132934,0.27852538,43441.0,43422.0,0.00121967]
[1641423133230,0.057584,43432.0,43430.0,0.006]
[1641423134534,0.00129449,43437.0,43410.0,0.4139]
[1641423134535,0.057595,43423.0,43410.0,0.4139]
[1641423135185,0.061595,43423.0,43410.0,0.4219]
[1641423135484,0.061595,43423.0,43414.0,0.31970963]
[1641423135885,0.061595,43423.0,43414.0,1.54670963]
[1641423136087,0.061595,43423.0,43414.0,0.31970963]
[1641423136286,0.061595,43423.0,43410.0,0.4219]
[1641423136487,0.057595,43423.0,43410.0,0.4139]
[1641423136687,0.33046172,43423.0,43409.0,0.00126098]
[1641423136887,0.29579067,43422.0,43403.0,1.227]
[1641423137088,0.057605,43413.0,43403.0,1.28589691]
[1641423137293,0.057605,43413.0,43409.0,0.36244071]
[1641423137691,0.056054,43413.0,43409.0,0.36244071]
[1641423137889,0.115209,43416.0,43409.0,0.36244071]
[1641423138191,0.057601,43414.0,43409.0,0.36244071]
[1641423138390,0.057601,43414.0,43408.0,0.00125548]
[1641423138629,0.3641401,43421.0,43408.0,0.00125548]
[1641423138829,0.00124547,43422.0,43408.0,0.00125548]
[1641423139230,0.057602,43415.0,43408.0,0.00825548]
[1641423139431,0.005,43421.0,43408.0,0.23247508]
[1641423139632,0.005,43421.0,43408.0,0.00825548]
[1641423139935,0.005,43421.0,43416.0,0.27891568]
[1641423140131,0.005,43421.0,43417.0,1.227]
[1641423140432,0.00123486,43429.0,43417.0,1.227]
[1641423140831,0.00123486,43429.0,43417.0,1.222]
[1641423141235,0.057589,43421.0,43417.0,1.225]
[1641423142288,0.057589,43421.0,43417.0,1.28258723]
[1641423142486,0.057584,43424.0,43418.0,1.80038321]
[1641423142680,0.00121434,43438.0,43420.0,0.00124037]
[1641423143281,0.00321434,43438.0,43420.0,0.00824037]
[1641423143579,0.00321434,43438.0,43426.0,0.27680981]
[1641423143780,0.00321434,43438.0,43427.0,0.2137512]
[1641423143985,0.057574,43433.0,43429.0,1.222]
[1641423144182,0.00321434,43438.0,43429.0,1.222]
[1641423144183,0.002,43438.0,43429.0,1.222]
[1641423145086,0.06905351,43445.0,43437.0,0.00126416]
[1641423145281,0.027,43438.0,43435.0,1.222]
[1641423145481,0.027,43438.0,43437.0,0.00123038]
[1641423146429,0.057561,43441.0,43437.0,0.00123038]
[1641423146829,0.1,43460.0,43437.0,0.00123038]
[1641423146830,0.06986,43468.0,43440.0,0.00122675]
[1641423147030,0.5406,43463.0,43448.0,0.00127088]
[1641423147432,0.23147798,43464.0,43449.0,0.05754575]
[1641423147636,0.26325107,43462.0,43449.0,0.05754575]
[1641423148037,0.23147798,43464.0,43455.0,0.00257899]
[1641423148038,0.22661529,43464.0,43455.0,0.00257899]
[1641423148235,0.057546,43460.0,43455.0,0.00257899]
[1641423148438,0.057546,43460.0,43455.0,0.00380369]
[1641423149237,0.078546,43460.0,43455.0,0.00480369]
[1641423149636,0.078546,43460.0,43455.0,0.06234327]
[1641423149889,0.021,43460.0,43459.0,0.00125832]
[1641423150487,0.057533,43463.0,43459.0,0.00125832]
[1641423150790,0.057533,43463.0,43460.0,0.05753171]
[1641423151288,0.057533,43463.0,43460.0,0.002]
[1641423151689,0.057529,43465.0,43460.0,0.002]
[1641423152588,0.057529,43465.0,43459.0,1.227]
[1641423153287,0.057529,43465.0,43462.0,1.227]
[1641423153929,0.0001,43468.0,43463.0,0.00127035]
[1641423153930,0.057527,43467.0,43463.0,0.00127035]
[1641423154731,0.057527,43467.0,43464.0,0.00122508]
[1641423155331,0.057527,43467.0,43464.0,0.00322508]
[1641423155931,0.052527,43467.0,43464.0,0.00322508]
[1641423156131,0.052527,43467.0,43464.0,1.22948418]
[1641423156531,0.052527,43467.0,43464.0,1.22748418]
[1641423156733,0.052527,43467.0,43464.0,0.00122508]
[1641423156933,0.052527,43467.0,43456.0,0.42]
[1641423157135,0.052527,43467.0,43456.0,0.316]
[1641423157389,0.05,43467.0,43464.0,0.000906]
[1641423157590,0.05,43467.0,43455.0,0.00257899]
[1641423157591,0.27455507,43466.0,43455.0,0.00257899]
[1641423157790,0.172636,43466.0,43455.0,0.00257899]
[1641423158692,0.0012313,43464.0,43455.0,0.00257899]
[1641423158989,0.115101,43461.0,43455.0,0.00257899]
[1641423159389,0.115101,43461.0,43455.0,0.00357899]
[1641423159991,0.057551,43460.0,43455.0,0.00357899]
[1641423160600,0.057551,43460.0,43455.0,0.00257899]
[1641423161036,0.057551,43460.0,43447.0,0.00127719]
[1641423161238,0.00125035,43455.0,43444.0,0.2241387]
[1641423161440,0.057565,43452.0,43435.0,1.77708407]
[1641423161638,0.30275701,43444.0,43435.0,1.64215681]
[1641423161839,0.0001,43440.0,43435.0,0.4139]
[1641423162039,0.0001,43440.0,43433.0,0.00267742]
[1641423162040,0.00137303,43440.0,43433.0,0.00267742]
[1641423162239,0.00137303,43440.0,43420.0,0.00124776]
[1641423162240,0.0012948,43435.0,43420.0,0.00124776]
[1641423162439,0.0001,43440.0,43435.0,0.2287052]
[1641423162639,0.05,43439.0,43435.0,0.2287052]
[1641423162940,0.3621192,43436.0,43421.0,0.21029985]
[1641423163143,0.5121192,43436.0,43420.0,0.065]
[1641423163539,0.172772,43432.0,43416.0,1.227]
[1641423163742,0.00127227,43428.0,43410.0,0.00403909]
[1641423163940,0.00127227,43428.0,43410.0,0.00277585]
[1641423163941,0.00128397,43422.0,43410.0,0.00277585]
[1641423164342,0.00122092,43411.0,43410.0,0.00277585]
[1641423164542,4.50883892,43411.0,43410.0,0.00277585]
[1641423164786,0.05883892,43411.0,43410.0,0.00277585]
[1641423165279,0.05883892,43411.0,43410.0,0.00577585]
[1641423165280,0.06983892,43411.0,43410.0,0.00577585]
[1641423166682,0.06983892,43411.0,43403.0,0.0134938]
[1641423166883,0.00122663,43405.0,43403.0,0.0134938]
[1641423167280,0.01022663,43405.0,43403.0,0.0134938]
[1641423167782,0.38103551,43405.0,43403.0,0.0134938]
[1641423167981,0.38103551,43405.0,43400.0,0.0001]
[1641423167982,6.107628,43404.0,43400.0,0.0001]
[1641423168383,0.157628,43404.0,43400.0,0.0001]
[1641423168631,0.157628,43404.0,43388.0,1.23115776]
[1641423168632,0.172905,43402.0,43388.0,1.23115776]
[1641423168833,0.222905,43402.0,43388.0,1.23115776]
[1641423169032,0.222905,43402.0,43391.0,0.33369477]
[1641423169033,0.057634,43396.0,43391.0,0.33369477]
[1641423169233,0.057634,43396.0,43392.0,1.227]
[1641423169434,0.052634,43396.0,43388.0,0.00415776]
[1641423169634,0.005,43402.0,43389.0,0.367223]
[1641423169834,0.005,43402.0,43394.0,0.00125507]
[1641423170033,0.005,43402.0,43395.0,0.417223]
[1641423170333,0.005,43402.0,43394.0,0.00125507]
[1641423170334,0.057615,43401.0,43394.0,0.00125507]
[1641423170532,0.057615,43401.0,43394.0,0.36332876]
[1641423171335,0.065615,43401.0,43395.0,1.227]
[1641423171534,0.065615,43401.0,43397.0,1.227]
[1641423171933,0.065615,43401.0,43397.0,1.277]
[1641423172380,0.065615,43401.0,43397.0,1.33461752]
[1641423172582,0.057615,43401.0,43397.0,1.28461752]
[1641423172978,0.057615,43401.0,43394.0,1.93555894]
[1641423173383,0.067615,43401.0,43397.0,0.004]
[1641423173782,0.067615,43401.0,43398.0,1.227]
[1641423174588,0.057612,43404.0,43399.0,0.367223]
[1641423174885,0.06908022,43428.0,43405.0,0.00121544]
[1641423175284,0.06908022,43428.0,43403.0,1.227]
[1641423175285,0.06908022,43428.0,43411.0,0.00127474]
[1641423175486,0.10108022,43428.0,43411.0,0.00127474]
[1641423175786,0.31071988,43427.0,43412.0,0.30053839]
[1641423176041,0.115188,43421.0,43413.0,0.05759661]
[1641423176236,0.115188,43421.0,43412.0,0.30053839]
[1641423177134,0.115188,43421.0,43415.0,1.227]
[1641423177335,0.011,43421.0,43415.0,1.227]
[1641423177536,0.068593,43421.0,43415.0,1.227]
[1641423178235,0.068593,43421.0,43416.0,0.20805368]
[1641423178439,0.068593,43421.0,43418.0,0.00123404]
[1641423178639,0.057593,43421.0,43418.0,0.00123404]
[1641423178838,0.057593,43421.0,43419.0,0.367223]
[1641423179137,0.057586,43423.0,43420.0,9.877]
[1641423179341,0.013,43421.0,43420.0,1.227]
[1641423180584,0.057583,43425.0,43420.0,1.8833595]
[1641423180783,0.057583,43425.0,43421.0,1.227]
[1641423181485,0.090583,43425.0,43421.0,1.229]
[1641423182182,0.090583,43425.0,43423.0,1.227]
[1641423182585,0.115165,43430.0,43424.0,11.1279621]
[1641423182786,0.230354,43444.0,43425.0,0.22431306]
[1641423182990,0.230354,43444.0,43436.0,0.00123571]
[1641423183627,0.057575,43439.0,43436.0,0.00123571]
[1641423184029,0.0001,43440.0,43438.0,0.0012981]
[1641423184227,0.0001,43440.0,43439.0,10.117223]
[1641423184428,0.0001,43440.0,43439.0,0.367223]
[1641423184627,0.0001,43440.0,43439.0,5.818426]
[1641423184831,0.0001,43440.0,43439.0,0.418426]
[1641423185129,0.0001,43440.0,43439.0,1.85544451]
[1641423185427,0.0001,43440.0,43439.0,1.85844451]
[1641423185628,0.0001,43440.0,43439.0,1.648426]
[1641423186029,0.0001,43440.0,43439.0,1.598426]
[1641423186727,0.0001,43440.0,43439.0,1.595426]
[1641423187290,0.0001,43440.0,43439.0,1.645426]
[1641423187483,0.0001,43440.0,43439.0,1.600426]
[1641423187683,0.0001,43440.0,43439.0,1.650426]
[1641423188683,0.0001,43440.0,43439.0,1.645426]
[1641423188892,0.0001,43446.0,43439.0,1.645426]
[1641423189085,0.0001,43446.0,43445.0,0.00128474]
[1641423189283,0.0001,43446.0,43445.0,11.24550774]
[1641423189484,0.0001,43446.0,43445.0,1.59550774]
[1641423190184,0.0001,43446.0,43445.0,0.36850774]
[1641423190386,0.0001,43446.0,43445.0,0.00128474]
[1641423190589,0.2001,43446.0,43445.0,0.00128474]
[1641423191236,0.2001,43446.0,43445.0,0.00255192]
[1641423191438,0.2001,43446.0,43445.0,0.00755192]
[1641423192235,0.2001,43446.0,43445.0,0.23755192]
[1641423192436,0.34244407,43445.0,43438.0,0.01344637]
[1641423192640,0.10123571,43439.0,43438.0,0.01344637]
[1641423192837,0.00123571,43439.0,43438.0,4.637e-05]
[1641423193136,0.00123571,43439.0,43425.0,0.13494445]
[1641423193137,0.10123571,43439.0,43425.0,0.13494445]
[1641423193437,0.33463354,43429.0,43415.0,0.37220889]
[1641423193638,0.057594,43424.0,43415.0,0.37220889]
[1641423193939,0.057594,43424.0,43413.0,1.6409]
[1641423194135,0.057594,43424.0,43413.0,1.75608673]
[1641423194337,0.057594,43424.0,43413.0,1.34218673]
[1641423194637,0.05,43424.0,43413.0,1.227]
[1641423194881,0.0576,43419.0,43413.0,1.227]
[1641423195083,0.0576,43419.0,43413.0,1.123]
[1641423195482,0.0606,43419.0,43414.0,0.0575968]
[1641423196081,0.0606,43419.0,43415.0,1.019]
[1641423196284,0.0606,43419.0,43413.0,0.01]
[1641423196285,0.00125598,43415.0,43413.0,0.01]
[1641423196491,8.70887542,43414.0,43413.0,0.005]
[1641423196683,0.00125055,43402.0,43400.0,0.13507761]
[1641423196884,0.00125055,43402.0,43398.0,0.0951]
[1641423197483,0.057627,43401.0,43398.0,0.1021]
[1641423198837,0.057627,43401.0,43398.0,0.0951]
[1641423199441,0.062627,43401.0,43398.0,0.1011]
[1641423200242,0.00129957,43411.0,43399.0,9.6]
[1641423200443,0.0392,43418.0,43399.0,9.6]
[1641423200641,0.0392,43418.0,43404.0,0.0012031]
[1641423200846,0.057619,43408.0,43404.0,0.0012031]
[1641423201142,0.105213,43413.0,43405.0,1.50566028]
[1641423201343,0.230464,43423.0,43407.0,1.227]
[1641423201547,0.027,43408.0,43407.0,1.227]
[1641423201742,0.027,43408.0,43407.0,1.594223]
[1641423201942,0.10117127,43426.0,43408.0,1.227]
[1641423201943,0.0576,43415.0,43408.0,1.227]
[1641423202142,0.0576,43415.0,43412.0,0.00125327]
[1641423202384,0.11519,43422.0,43413.0,0.73813807]
[1641423202585,0.12863795,43422.0,43414.0,0.20884173]
[1641423202984,0.01344795,43422.0,43415.0,1.227]
[1641423203187,0.01344795,43422.0,43417.0,0.00128891]
[1641423203387,0.01344795,43422.0,43420.0,0.29689715]
[1641423203588,0.01344795,43422.0,43421.0,10.027]
[1641423203589,0.01644795,43422.0,43421.0,10.027]
[1641423203787,0.01644795,43422.0,43421.0,10.02828005]
[1641423203987,0.09578795,43439.0,43422.0,2.917223]
[1641423204191,0.172757,43438.0,43422.0,2.55421205]
[1641423204387,0.19509136,43438.0,43423.0,0.20429363]
[1641423204586,0.19509136,43438.0,43430.0,0.00421205]
[1641423204790,0.19509136,43438.0,43423.0,0.21154517]
[1641423204986,0.19509136,43438.0,43425.0,0.00421205]
[1641423205188,0.115165,43431.0,43425.0,0.00421205]
[1641423205388,0.19509136,43438.0,43430.0,0.00421205]
[1641423205389,0.02233436,43438.0,43430.0,0.00421205]
[1641423205588,0.04055469,43438.0,43427.0,0.29941138]
[1641423205790,0.21331069,43438.0,43425.0,0.002]
[1641423206237,0.21331069,43438.0,43431.0,0.00421205]
[1641423206438,0.057582,43432.0,43428.0,0.00421205]
[1641423206638,0.36056684,43430.0,43421.0,0.00128005]
[1641423206843,0.057582,43432.0,43423.0,0.00421205]
[1641423207041,0.057582,43432.0,43421.0,0.00128005]
[1641423207540,0.121582,43432.0,43426.0,0.00421205]
[1641423207741,0.057589,43429.0,43423.0,0.003]
[1641423208239,0.057589,43429.0,43425.0,0.00421205]
[1641423208441,0.02155469,43428.0,43425.0,0.00421205]
[1641423208640,0.02155469,43428.0,43427.0,0.00421205]
[1641423208839,0.07913969,43428.0,43427.0,0.00421205]
[1641423209039,0.07913969,43428.0,43421.0,0.00128005]
[1641423209240,0.07913969,43428.0,43427.0,0.00421205]
[1641423209447,0.10113969,43428.0,43427.0,0.00621205]
[1641423210090,0.10113969,43428.0,43427.0,0.002]
[1641423210284,0.10113969,43428.0,43427.0,0.00621205]
[1641423210885,0.07913969,43428.0,43427.0,0.00421205]
[1641423211486,0.07913969,43428.0,43427.0,0.00821205]
[1641423211487,0.09113969,43428.0,43427.0,0.00821205]
[1641423212888,0.07913969,43428.0,43427.0,0.00421205]